Workbook

Sheet travel accounting form
A1: FIG Travel Accounting Form
A2: This form can be found electronically on FIG Web site in the most recent version:
A3: http://fig.net/about/office/index.asp
A5: General information | J5: Updated: 17-01-2023
A6: Name: | E6: Position:
A7: Visit to: | E7: Departure date & time: *
A8: Purpose: | E8: Return date & time*:
E9: *Please state dates and times for correct per diem calculation
A10: Expenses:
A11: Column no.
A12: 1 | C12: 2 | D12: 3 | E12: 4 | F12: 5 | I12: 6 | J12: 7 | K12: 8
F13: Paid by FIG credit card (amount) | I13: Paid with own cash or creditcard (amount):
A14: Topic | C14: Description | D14: Date | E14: Voucher# | F14: Amount | G14: Currency | I14: Amount | J14: Currency | K14: Amount in EUR
A15: Airfares:
A20: Use of own car:
A21: 3,73 DKK per km
A24: Local transport:
A29: Accommodation:
A34: Entertainment:
A38: Other reimbursable
A39: expenses (not
A40: covered by per diems):
C43: Total by FIG card | F43: =SUM(F15:F42) -> 0.00 | H43: =SUM(H15:H42) -> € 0.00
A44: TOTAL cash EUR | K44: =SUM(K15:K43) -> € 0.00
A45: TOTAL cash currency | I45: =SUM(I15:I43) -> 0.00
A46: Total Per Diems | I46: =C57 -> DKK 0.00 | K46: =I46/7.44 -> € 0.00
A47: Total to be paid by FIG | K47: =SUM(K44:K46) -> € 0.00
A49: Per Diems:
A50: Days: | B50: @
B51: =K57 -> 555.00 | C51: =A51*B51 -> DKK 0.00
B52: =K58 -> 471.75 | C52: =A52*B52 -> DKK 0.00
B53: =K59 -> 388.50 | C53: =A53*B53 -> DKK 0.00
B54: =K61 -> 305.25 | C54: DKK 0.00
B55: =K63 -> 222.00 | C55: DKK 0.00
B56: =K64 -> 138.75 | C56: DKK 0.00 | E56: ='per diems'!A1 -> Category | F56: ='per diems'!B1 -> Meals provided | G56: ='per diems'!C1 -> Meals bought | I56: ='per diems'!E1 -> Deduction | J56: ='per diems'!F1 -> Deduction amount | K56: ='per diems'!G1 -> Per diem
A57: =SUM(A51:A56) -> 0 | C57: =SUM(C51:C56) -> DKK 0.00 | E57: ='per diems'!A2 -> 1 | F57: ='per diems'!B2 -> None | G57: ='per diems'!C2 -> Breakfast + lunch + dinner | I57: ='per diems'!E2 -> 0% | J57: ='per diems'!F2 -> 0.00 | K57: ='per diems'!G2 -> 555.00
E58: ='per diems'!A3 -> 2 | F58: ='per diems'!B3 -> Breakfast | G58: ='per diems'!C3 -> Lunch + dinner | I58: ='per diems'!E3 -> 15% | J58: ='per diems'!F3 -> 83.25 | K58: ='per diems'!G3 -> 471.75
E59: ='per diems'!A4 -> 3 | F59: ='per diems'!B4 -> Lunch | G59: ='per diems'!C4 -> Breakfast + dinner | I59: ='per diems'!E4 -> 30% | J59: ='per diems'!F4 -> 166.50 | K59: ='per diems'!G4 -> 388.50
E60: ='per diems'!A5 -> 4 | F60: ='per diems'!B5 -> Dinner | G60: ='per diems'!C5 -> Breakfast + lunch | I60: ='per diems'!E5 -> 30% | J60: ='per diems'!F5 -> 166.50 | K60: ='per diems'!G5 -> 388.50
A61: Account information: | E61: ='per diems'!A6 -> 5 | F61: ='per diems'!B6 -> Breakfast + lunch | G61: ='per diems'!C6 -> Dinner | I61: ='per diems'!E6 -> 45% | J61: ='per diems'!F6 -> 249.75 | K61: ='per diems'!G6 -> 305.25
A62: Bank: | E62: ='per diems'!A7 -> 6 | F62: ='per diems'!B7 -> Breakfast + dinner | G62: ='per diems'!C7 -> Lunch | I62: ='per diems'!E7 -> 45% | J62: ='per diems'!F7 -> 249.75 | K62: ='per diems'!G7 -> 305.25
E63: ='per diems'!A8 -> 7 | F63: ='per diems'!B8 -> Lunch + dinner | G63: ='per diems'!C8 -> Breakfast | I63: ='per diems'!E8 -> 60% | J63: ='per diems'!F8 -> 333.00 | K63: ='per diems'!G8 -> 222.00
A64: Branch: | E64: ='per diems'!A9 -> 8 | F64: ='per diems'!B9 -> Breakfast + lunch + dinner | G64: ='per diems'!C9 -> None | I64: ='per diems'!E9 -> 75% | J64: ='per diems'!F9 -> 416.25 | K64: ='per diems'!G9 -> 138.75
A66: Account no./IBAN:
A68: Name of account:
A70: SWIFT Code:
A72: Name of account
A73: holder:
A77: Signature: | F77: FIG payment
F78: authorisation:
A80: Date: | F80: Date:

Sheet per diems
A1: Category | B1: Meals provided | C1: Meals bought | E1: Deduction | F1: Deduction amount | G1: Per diem
A2: 1 | B2: None | C2: Breakfast + lunch + dinner | E2: 0% | F2: 0.00 | G2: 555.00
A3: 2 | B3: Breakfast | C3: Lunch + dinner | E3: 15% | F3: =G2*E3 -> 83.25 | G3: =G2-F3 -> 471.75
A4: 3 | B4: Lunch | C4: Breakfast + dinner | E4: 30% | F4: =G2*E4 -> 166.50 | G4: =G2-F4 -> 388.50
A5: 4 | B5: Dinner | C5: Breakfast + lunch | E5: 30% | F5: =G2*E5 -> 166.50 | G5: =G2-F5 -> 388.50
A6: 5 | B6: Breakfast + lunch | C6: Dinner | E6: 45% | F6: =G2*E6 -> 249.75 | G6: =G2-F7 -> 305.25
A7: 6 | B7: Breakfast + dinner | C7: Lunch | E7: 45% | F7: =G2*E7 -> 249.75 | G7: =G2-F7 -> 305.25
A8: 7 | B8: Lunch + dinner | C8: Breakfast | E8: 60% | F8: =G2*E8 -> 333.00 | G8: =G2-F8 -> 222.00
A9: 8 | B9: Breakfast + lunch + dinner | C9: None | E9: 75% | F9: =G2*E9 -> 416.25 | G9: =G2-F9 -> 138.75
B11: Accommodation | G11: 238

Sheet Ark3
